fUSD/lending_fUSD_20251123
["ID","MTS","AMOUNT","RATE_DAILY","PERIOD"]
[394703387,1763907042356,-450.0,0.0003726,2]
[394703388,1763907042366,-1340.0,0.00037307,20]
[394703389,1763907042375,-5633.40771,0.00037387,3]
[394703390,1763907042385,-250.0,0.00037397,2]
[394703391,1763907042394,-250.0,0.00037397,2]
[394703392,1763907042403,-217.94614888,0.00037452,2]
[394703393,1763907042412,-3690.08446689,0.00037504,2]
[394703394,1763907042427,-3284.48330623,0.00037504,2]
[394703395,1763907042436,-5633.40771,0.00037514,3]
[394703396,1763907042446,-1340.0,0.00037692,20]
[394703397,1763907042458,-217.94614888,0.00037739,2]
[394703398,1763907042468,-217.94614888,0.00037954,2]
[394703399,1763907042478,-2092.314224,0.00038,2]
[394703400,1763907042488,-5633.40771,0.00038067,3]
[394703401,1763907042498,-1340.0,0.00038077,20]
[394703402,1763907042507,-307.50928801,0.00038146,13]
[394703403,1763907042518,-5633.40771,0.00038236,3]
[394703404,1763907042528,-5633.40771,0.00038246,3]
[394703405,1763907042538,-217.94614888,0.00038248,2]
[394703406,1763907042547,-1437.7904857,0.00038252,2]
[394703407,1763907042556,-1000.0,0.00038256,120]
[394703408,1763907042567,-1000.0,0.00038256,2]
[394703409,1763907042576,-5814.05500942,0.00038256,2]
[394703410,1763907042587,-871.03,0.00038256,2]
[394703411,1763907042598,-315.8851235,0.00038256,2]
[394703412,1763907042618,-1946.05986708,0.00038256,2]
[394703413,1763907042627,-615.0,0.00038329,120]
[394703414,1763907042636,-1033.34256892,0.00038336,3]
[394703416,1763907042864,1581.75452667,0.00016561,2]
[394703417,1763907042986,1405.47185719,0.00016561,2]
[394703443,1763907046025,-930.0,0.00018333,2]
[394703444,1763907046038,-70.0,0.00018333,2]
[394703445,1763907046050,-1192.0,0.00019295,2]
[394703446,1763907046060,-3026.69190282,0.00035107,2]
[394703447,1763907046070,-49667.32682108,0.00038336,3]
[394703448,1763907046080,-300.0,0.00038355,10]
[394703449,1763907046091,-6281.90644718,0.00038355,20]
[394703450,1763907046102,-150.0,0.00038355,20]
[394703451,1763907046111,-22801.7041324,0.00038356,2]
[394703452,1763907046122,-277.37410239,0.00038356,8]
[394703453,1763907046132,-160.962503,0.00038356,8]
[394703454,1763907046141,-669.704569,0.00038356,8]
[394703455,1763907046150,-234.9512,0.00038356,8]
[394703456,1763907046160,-500.0,0.00038356,8]
[394703457,1763907046170,-500.0,0.00038356,8]
[394703458,1763907046180,-400.0,0.00038356,8]
[394703459,1763907046190,-500.0,0.00038356,8]
[394703460,1763907046200,-500.0,0.00038356,8]
[394703461,1763907046209,-167.586562,0.00038356,8]
[394703462,1763907046219,-500.87933327,0.00038356,8]
[394703463,1763907046229,-283.620263,0.00038356,8]
[394703464,1763907046239,-508.50794784,0.00038356,8]
[394703465,1763907046248,-500.0,0.00038356,8]
[394703466,1763907046257,-500.0,0.00038356,8]
[394703467,1763907046267,-500.0,0.00038356,8]
[394703468,1763907046276,-500.0,0.00038356,8]
[394703469,1763907046285,-500.0,0.00038356,8]
[394703470,1763907046296,-385.93065418,0.00038356,7]
[394703471,1763907046307,-500.0,0.00038356,8]
[394703472,1763907046317,-500.0,0.00038356,8]
[394703473,1763907046326,-500.0,0.00038356,8]
[394703474,1763907046336,-500.0,0.00038356,8]
[394703475,1763907046345,-500.0,0.00038356,2]
[394703476,1763907046355,-500.0,0.00038356,2]
[394703477,1763907046366,-500.0,0.00038356,8]
[394703478,1763907046375,-500.0,0.00038356,8]
[394703479,1763907046384,-500.0,0.00038356,8]
[394703480,1763907046394,-500.0,0.00038356,8]
[394703481,1763907046403,-526.90897929,0.00038356,8]
[394703482,1763907046413,-500.0,0.00038356,8]
[394703483,1763907046423,-500.0,0.00038356,8]
[394703484,1763907046432,-500.0,0.00038356,8]
[394703485,1763907046442,-500.0,0.00038356,8]
[394703486,1763907046451,-500.0,0.00038356,8]
[394703487,1763907046462,-500.0,0.00038356,8]
[394703488,1763907046473,-681.3,0.00038356,8]
[394703490,1763907046484,-500.0,0.00038356,8]
[394703492,1763907046493,-500.0,0.00038356,8]
[394703494,1763907046503,-500.0,0.00038356,8]
[394703496,1763907046512,-500.0,0.00038356,8]
[394703498,1763907046521,-500.0,0.00038356,8]
[394703500,1763907046530,-500.0,0.00038356,8]
[394703502,1763907046540,-500.0,0.00038356,8]
[394703504,1763907046548,-500.0,0.00038356,8]
[394703506,1763907046557,-500.0,0.00038356,8]
[394703508,1763907046567,-500.0,0.00038356,8]
[394703510,1763907046576,-500.0,0.00038356,8]
[394703512,1763907046585,-628.93679436,0.00038356,8]
[394703514,1763907046595,-500.0,0.00038356,8]
[394703516,1763907046604,-500.0,0.00038356,8]
[394703518,1763907046613,-500.0,0.00038356,8]
[394703520,1763907046622,-233.54372202,0.00038356,8]
[394703522,1763907046631,-500.0,0.00038356,8]
[394703524,1763907046641,-500.0,0.00038356,8]
[394703526,1763907046650,-505.18013985,0.00038356,8]
[394703527,1763907046660,-500.0,0.00038356,8]
[394703530,1763907046669,-500.0,0.00038356,8]
[394703531,1763907046680,-500.0,0.00038356,8]
[394703533,1763907046690,-525.49754422,0.00038356,8]
[394703535,1763907046699,-516.78751956,0.00038356,8]
[394703536,1763907046709,-500.0,0.00038356,8]
[394703537,1763907046719,-500.0,0.00038356,8]
[394703538,1763907046728,-724.49,0.00038356,8]
[394703539,1763907046738,-567.1028995,0.00038356,8]
[394703540,1763907046748,-500.0,0.00038356,8]
[394703541,1763907046757,-500.0,0.00038356,8]
[394703542,1763907046767,-500.0,0.00038356,8]
[394703543,1763907046777,-500.0,0.00038356,8]
[394703544,1763907046786,-500.0,0.00038356,8]
[394703545,1763907046796,-252.86275129,0.00038356,8]
[394703546,1763907046805,-500.0,0.00038356,8]
[394703547,1763907046815,-500.0,0.00038356,8]
[394703548,1763907046825,-582.12675759,0.00038356,8]
[394703549,1763907046835,-500.0,0.00038356,8]
[394703550,1763907046844,-821.39,0.00038356,8]
[394703551,1763907046853,-500.76131093,0.00038356,8]
[394703552,1763907046863,-500.0,0.00038356,8]
[394703553,1763907046872,-500.0,0.00038356,8]
[394703554,1763907046882,-542.75,0.00038356,8]
[394703555,1763907046892,-500.0,0.00038356,8]
[394703556,1763907046901,-500.0,0.00038356,8]
[394703557,1763907046912,-421.8002185,0.00038356,8]
[394703558,1763907046922,-413.18515797,0.00038356,8]
[394703559,1763907046937,-500.0,0.00038356,8]
[394703560,1763907046947,-500.0,0.00038356,8]
[394703561,1763907046956,-500.0,0.00038356,8]
[394703562,1763907046966,-645.79770984,0.00038356,8]
[394703563,1763907046976,-500.0,0.00038356,8]
[394703564,1763907046985,-500.0,0.00038356,8]
[394703565,1763907046995,-503.64052632,0.00038356,8]
[394703566,1763907047006,-500.0,0.00038356,8]
[394703567,1763907047015,-686.67,0.00038356,8]
[394703568,1763907047026,-278.33419635,0.00038356,8]
[394703569,1763907047035,-500.0,0.00038356,8]
[394703570,1763907047044,-500.0,0.00038356,8]
[394703571,1763907047053,-530.26521425,0.00038356,8]
[394703572,1763907047063,-505.69561739,0.00038356,8]
[394703573,1763907047072,-500.0,0.00038356,8]
[394703574,1763907047081,-759.02,0.00038356,8]
[394703575,1763907047091,-836.11,0.00038356,8]
[394703576,1763907047100,-623.86,0.00038356,8]
[394703577,1763907047110,-500.0,0.00038356,8]
[394703578,1763907047119,-500.0,0.00038356,8]
[394703579,1763907047129,-500.0,0.00038356,8]
[394703580,1763907047138,-500.0,0.00038356,8]
[394703581,1763907047148,-500.0,0.00038356,8]
[394703582,1763907047158,-500.0,0.00038356,8]
[394703583,1763907047168,-300.0,0.00038356,8]
[394703584,1763907047177,-500.0,0.00038356,8]
[394703585,1763907047187,-516.33933185,0.00038356,8]
[394703586,1763907047197,-503.79521013,0.00038356,8]
[394703587,1763907047208,-500.0,0.00038356,8]
[394703588,1763907047218,-500.0,0.00038356,8]
[394703589,1763907047229,-500.0,0.00038356,8]
[394703590,1763907047238,-500.0,0.00038356,8]
[394703591,1763907047248,-500.0,0.00038356,8]
[394703592,1763907047258,-500.0,0.00038356,8]
[394703593,1763907047267,-500.0,0.00038356,8]
[394703594,1763907047278,-500.0,0.00038356,8]
[394703595,1763907047288,-416.32696581,0.00038356,8]
[394703596,1763907047298,-500.0,0.00038356,8]
[394703597,1763907047307,-500.0,0.00038356,8]
[394703598,1763907047317,-515.04,0.00038356,8]
[394703599,1763907047327,-500.0,0.00038356,8]
[394703600,1763907047337,-500.0,0.00038356,8]
[394703601,1763907047346,-500.0,0.00038356,8]
[394703602,1763907047356,-500.0,0.00038356,8]
[394703603,1763907047367,-500.0,0.00038356,8]
[394703604,1763907047376,-635.5411626,0.00038356,8]
[394703605,1763907047385,-500.0,0.00038356,8]
[394703606,1763907047395,-500.0,0.00038356,8]
[394703607,1763907047405,-500.0,0.00038356,8]
[394703608,1763907047414,-500.0,0.00038356,8]
[394703609,1763907047423,-673.66,0.00038356,8]
[394703610,1763907047434,-500.0,0.00038356,8]
[394703611,1763907047443,-532.41,0.00038356,8]
[394703612,1763907047453,-500.0,0.00038356,8]
[394703613,1763907047462,-500.0,0.00038356,8]
[394703614,1763907047471,-500.0,0.00038356,8]
[394703615,1763907047481,-500.0,0.00038356,8]
[394703616,1763907047491,-500.0,0.00038356,8]
[394703617,1763907047500,-500.0,0.00038356,8]
[394703618,1763907047509,-500.0,0.00038356,8]
[394703619,1763907047518,-500.0,0.00038356,8]
[394703620,1763907047528,-500.0,0.00038356,8]
[394703621,1763907047537,-500.0,0.00038356,8]
[394703622,1763907047547,-500.0,0.00038356,8]
[394703623,1763907047556,-500.0,0.00038356,8]
[394703624,1763907047566,-500.0,0.00038356,8]
[394703625,1763907047575,-500.0,0.00038356,8]
[394703626,1763907047585,-500.0,0.00038356,8]
[394703627,1763907047595,-500.0,0.00038356,8]
[394703628,1763907047605,-500.0,0.00038356,8]
[394703629,1763907047615,-500.0,0.00038356,8]
[394703630,1763907047624,-500.0,0.00038356,8]
[394703631,1763907047634,-500.0,0.00038356,8]
[394703632,1763907047645,-500.0,0.00038356,8]
[394703633,1763907047655,-500.0,0.00038356,8]
[394703634,1763907047664,-500.0,0.00038356,8]
[394703635,1763907047674,-500.0,0.00038356,8]
[394703636,1763907047684,-500.0,0.00038356,8]
[394703637,1763907047693,-505.69015021,0.00038356,8]
[394703638,1763907047702,-500.0,0.00038356,8]
[394703639,1763907047712,-944.81,0.00038356,8]
[394703640,1763907047723,-500.0,0.00038356,8]
[394703641,1763907047732,-504.16926263,0.00038356,8]
[394703642,1763907047742,-500.0,0.00038356,8]
[394703643,1763907047751,-500.0,0.00038356,8]
[394703644,1763907047761,-500.0,0.00038356,8]
[394703645,1763907047770,-655.39,0.00038356,8]
[394703646,1763907047780,-514.68,0.00038356,8]
[394703647,1763907047790,-500.0,0.00038356,8]
[394703648,1763907047800,-500.0,0.00038356,8]
[394703649,1763907047809,-715.09,0.00038356,8]
[394703650,1763907047818,-500.0,0.00038356,8]
[394703651,1763907047827,-709.94,0.00038356,8]
[394703652,1763907047836,-500.0,0.00038356,8]
[394703653,1763907047846,-157.15489233,0.00038356,8]
[394703654,1763907047855,-659.78,0.00038356,8]
[394703655,1763907047865,-500.0,0.00038356,8]
[394703656,1763907047874,-522.08738725,0.00038356,8]
[394703657,1763907047883,-500.0,0.00038356,8]
[394703658,1763907047893,-500.0,0.00038356,8]
[394703659,1763907047903,-500.0,0.00038356,8]
[394703660,1763907047912,-500.0,0.00038356,8]
[394703661,1763907047922,-500.0,0.00038356,8]
[394703662,1763907047936,-500.0,0.00038356,8]
[394703663,1763907047945,-500.0,0.00038356,8]
[394703664,1763907047954,-276.83031673,0.00038356,8]
[394703665,1763907047965,-500.0,0.00038356,8]
[394703666,1763907047977,-500.0,0.00038356,8]
[394703667,1763907047987,-500.0,0.00038356,8]
[394703668,1763907047997,-500.0,0.00038356,8]
[394703669,1763907048007,-957.44,0.00038356,8]
[394703670,1763907048018,-500.0,0.00038356,8]
[394703671,1763907048028,-500.0,0.00038356,8]
[394703672,1763907048038,-500.0,0.00038356,8]
[394703673,1763907048047,-511.73,0.00038356,8]
[394703674,1763907048057,-591.63,0.00038356,8]
[394703675,1763907048067,-500.0,0.00038356,8]
[394703676,1763907048076,-500.0,0.00038356,8]
[394703677,1763907048086,-580.5,0.00038356,8]
[394703678,1763907048096,-500.0,0.00038356,8]
[394703679,1763907048105,-500.0,0.00038356,8]
[394703680,1763907048115,-500.0,0.00038356,8]
[394703681,1763907048125,-500.0,0.00038356,8]
[394703682,1763907048134,-500.0,0.00038356,8]
[394703683,1763907048145,-500.0,0.00038356,8]
[394703684,1763907048155,-500.0,0.00038356,8]
[394703685,1763907048165,-500.0,0.00038356,8]
[394703686,1763907048175,-500.0,0.00038356,8]
[394703687,1763907048185,-500.0,0.00038356,8]
[394703688,1763907048195,-328.64537359,0.00038356,8]
[394703689,1763907048206,-500.0,0.00038356,8]
[394703690,1763907048216,-500.0,0.00038356,8]
[394703691,1763907048231,-500.0,0.00038356,8]
[394703692,1763907048242,-600.883235,0.00038356,8]
[394703693,1763907048252,-630.9,0.00038356,8]
[394703694,1763907048262,-500.0,0.00038356,8]
[394703695,1763907048271,-500.0,0.00038356,8]
[394703696,1763907048281,-623.72678358,0.00038356,8]
[394703697,1763907048292,-586.95,0.00038356,8]
[394703698,1763907048302,-500.0,0.00038356,8]
[394703699,1763907048311,-500.0,0.00038356,8]
[394703700,1763907048321,-500.0,0.00038356,8]
[394703701,1763907048331,-500.0,0.00038356,8]
[394703702,1763907048340,-500.0,0.00038356,8]
[394703703,1763907048349,-500.0,0.00038356,8]
[394703704,1763907048359,-500.0,0.00038356,8]
[394703705,1763907048368,-500.0,0.00038356,8]
[394703706,1763907048378,-500.0,0.00038356,8]
[394703707,1763907048387,-500.0,0.00038356,8]
[394703708,1763907048397,-500.0,0.00038356,8]
[394703709,1763907048408,-500.0,0.00038356,8]
[394703710,1763907048417,-970.06,0.00038356,8]
[394703711,1763907048426,-500.0,0.00038356,8]
[394703712,1763907048435,-625.59,0.00038356,8]
[394703713,1763907048445,-500.0,0.00038356,8]
[394703714,1763907048456,-692.89,0.00038356,8]
[394703715,1763907048465,-715.98,0.00038356,8]
[394703716,1763907048476,-500.0,0.00038356,8]
[394703717,1763907048486,-500.0,0.00038356,8]
[394703718,1763907048495,-500.0,0.00038356,8]
[394703719,1763907048505,-500.0,0.00038356,8]
[394703720,1763907048514,-500.0,0.00038356,8]
[394703721,1763907048525,-500.0,0.00038356,8]
[394703722,1763907048535,-500.0,0.00038356,8]
[394703723,1763907048544,-500.0,0.00038356,8]
[394703724,1763907048554,-500.0,0.00038356,8]
[394703725,1763907048563,-502.95438633,0.00038356,8]
[394703726,1763907048573,-500.0,0.00038356,8]
[394703727,1763907048583,-500.0,0.00038356,8]
[394703728,1763907048592,-359.3223753,0.00038356,8]
[394703729,1763907048601,-500.0,0.00038356,2]
[394703730,1763907048611,-500.0,0.00038356,8]
[394703731,1763907048620,-500.0,0.00038356,8]
[394703732,1763907048630,-413.68828588,0.00038356,8]
[394703733,1763907048640,-500.0,0.00038356,8]
[394703734,1763907048649,-500.0,0.00038356,8]
[394703735,1763907048659,-525.78,0.00038356,8]
[394703736,1763907048668,-500.0,0.00038356,8]
[394703737,1763907048677,-500.0,0.00038356,8]
[394703738,1763907048687,-500.0,0.00038356,8]
[394703739,1763907048697,-500.0,0.00038356,8]
[394703740,1763907048706,-500.0,0.00038356,8]
[394703741,1763907048715,-500.0,0.00038356,8]
[394703742,1763907048727,-500.0,0.00038356,8]
[394703743,1763907048737,-500.0,0.00038356,8]
[394703744,1763907048746,-500.0,0.00038356,8]
[394703745,1763907048755,-887.85,0.00038356,8]
[394703746,1763907048764,-500.0,0.00038356,8]
[394703747,1763907048773,-500.0,0.00038356,8]
[394703748,1763907048782,-500.0,0.00038356,8]
[394703749,1763907048791,-500.0,0.00038356,8]
[394703750,1763907048801,-500.0,0.00038356,8]
[394703751,1763907048810,-500.0,0.00038356,8]
[394703752,1763907048820,-500.0,0.00038356,8]
[394703753,1763907048831,-500.0,0.00038356,8]
[394703754,1763907048841,-500.0,0.00038356,8]
[394703755,1763907048850,-500.0,0.00038356,8]
[394703756,1763907048859,-500.0,0.00038356,8]
[394703757,1763907048869,-613.34,0.00038356,8]
[394703758,1763907048878,-500.0,0.00038356,8]
[394703759,1763907048888,-608.18123498,0.00038356,8]
[394703760,1763907049139,-500.0,0.00038356,8]
[394703761,1763907049149,-500.0,0.00038356,8]
[394703762,1763907049159,-500.0,0.00038356,8]
[394703763,1763907049169,-500.0,0.00038356,8]
[394703764,1763907049179,-500.0,0.00038356,8]
[394703765,1763907049189,-507.65157587,0.00038356,8]
[394703766,1763907049198,-500.0,0.00038356,8]
[394703767,1763907049207,-500.0,0.00038356,8]
[394703768,1763907049217,-500.0,0.00038356,8]
[394703769,1763907049228,-500.0,0.00038356,8]
[394703770,1763907049238,-212.53236601,0.00038356,8]
[394703771,1763907049251,-502.636668,0.00038356,8]
[394703772,1763907049261,-500.0,0.00038356,8]
[394703773,1763907049271,-500.0,0.00038356,8]
[394703774,1763907049282,-500.0,0.00038356,8]
[394703775,1763907049292,-518.92,0.00038356,8]
[394703776,1763907049301,-524.77,0.00038356,8]
[394703777,1763907049311,-500.0,0.00038356,8]
[394703778,1763907049321,-513.54730842,0.00038356,8]
[394703779,1763907049331,-500.0,0.00038356,8]
[394703780,1763907049341,-500.0,0.00038356,8]
[394703781,1763907049351,-755.36,0.00038356,8]
[394703782,1763907049361,-500.0,0.00038356,8]
[394703783,1763907049370,-418.19055576,0.00038356,8]
[394703784,1763907049380,-500.0,0.00038356,8]
[394703785,1763907049389,-700.0,0.00038356,120]
[394703786,1763907049398,-500.0,0.00038356,8]
[394703787,1763907049406,-529.46316656,0.00038356,8]
[394703788,1763907049415,-684.68,0.00038356,8]
[394703789,1763907049425,-500.0,0.00038356,8]
[394703790,1763907049435,-500.0,0.00038356,8]
[394703791,1763907049445,-500.0,0.00038356,8]
[394703792,1763907049455,-500.0,0.00038356,8]
[394703793,1763907049464,-834.9,0.00038356,8]
[394703794,1763907049476,-500.0,0.00038356,8]
[394703795,1763907049486,-500.0,0.00038356,8]
[394703796,1763907049495,-846.93,0.00038356,8]
[394703797,1763907049505,-500.0,0.00038356,8]
[394703798,1763907049515,-500.0,0.00038356,8]
[394703799,1763907049525,-683.04,0.00038356,8]
[394703800,1763907049535,-484.05465787,0.00038356,8]
[394703801,1763907049545,-562.74279923,0.00038356,8]
[394703802,1763907049555,-533.58872547,0.00038356,8]
[394703803,1763907049565,-500.0,0.00038356,8]
[394703804,1763907049574,-500.0,0.00038356,8]
[394703805,1763907049584,-500.0,0.00038356,8]
[394703806,1763907049593,-344.611109,0.00038356,8]
[394703807,1763907049603,-554.0705953,0.00038356,8]
[394703808,1763907049613,-500.0,0.00038356,8]
[394703809,1763907049623,-500.0,0.00038356,8]
[394703810,1763907049632,-527.5258592,0.00038356,8]
[394703811,1763907049642,-278.97267708,0.00038356,8]
[394703812,1763907049652,-500.0,0.00038356,8]
[394703813,1763907049662,-533.72065741,0.00038356,8]
[394703814,1763907049672,-500.0,0.00038356,8]
[394703815,1763907049681,-500.0,0.00038356,8]
[394703816,1763907049691,-518.36,0.00038356,8]
[394703817,1763907049701,-510.46,0.00038356,8]
[394703818,1763907049710,-500.0,0.00038356,8]
[394703819,1763907049720,-791.42,0.00038356,8]
[394703820,1763907049730,-500.0,0.00038356,8]
[394703821,1763907049740,-500.0,0.00038356,8]
[394703822,1763907049750,-500.0,0.00038356,8]
[394703823,1763907049760,-513.2093419,0.00038356,8]
[394703824,1763907049769,-500.0,0.00038356,8]
[394703825,1763907049779,-534.00900967,0.00038356,8]
[394703826,1763907049788,-500.0,0.00038356,8]
[394703827,1763907049798,-500.0,0.00038356,8]
[394703828,1763907049807,-917.54,0.00038356,8]
[394703829,1763907049816,-734.86,0.00038356,8]
[394703830,1763907049826,-586.7,0.00038356,8]
[394703831,1763907049836,-500.0,0.00038356,8]
[394703832,1763907049845,-500.0,0.00038356,8]
[394703833,1763907049855,-500.0,0.00038356,8]
[394703834,1763907049864,-300.0,0.00038356,2]
[394703835,1763907049874,-500.0,0.00038356,8]
[394703836,1763907049890,-500.0,0.00038356,8]
[394703837,1763907049900,-500.0,0.00038356,8]
[394703838,1763907049910,-500.0,0.00038356,8]
[394703839,1763907049920,-500.0,0.00038356,8]
[394703840,1763907049933,-603.84,0.00038356,8]
[394703841,1763907049943,-1038.27,0.00038356,8]
[394703842,1763907049953,-500.0,0.00038356,8]
[394703843,1763907049963,-647.62,0.00038356,8]
[394703844,1763907049972,-500.0,0.00038356,8]
[394703845,1763907049981,-500.0,0.00038356,8]
[394703846,1763907049991,-535.43,0.00038356,8]
[394703847,1763907050001,-500.0,0.00038356,8]
[394703848,1763907050010,-406.60820655,0.00038356,8]
[394703849,1763907050020,-500.0,0.00038356,8]
[394703850,1763907050029,-307.30493538,0.00038356,8]
[394703851,1763907050039,-500.0,0.00038356,8]
[394703852,1763907050048,-500.0,0.00038356,8]
[394703853,1763907050058,-500.0,0.00038356,8]
[394703854,1763907050067,-500.0,0.00038356,8]
[394703855,1763907050076,-500.0,0.00038356,8]
[394703856,1763907050085,-500.0,0.00038356,8]
[394703857,1763907050094,-500.0,0.00038356,8]
[394703858,1763907050104,-522.60579719,0.00038356,8]
[394703859,1763907050113,-742.18,0.00038356,8]
[394703860,1763907050122,-500.0,0.00038356,8]
[394703861,1763907050131,-500.0,0.00038356,8]
[394703862,1763907050140,-536.25,0.00038356,8]
[394703863,1763907050156,-500.0,0.00038356,8]
[394703864,1763907050167,-500.0,0.00038356,8]
[394703865,1763907050176,-500.0,0.00038356,8]
[394703866,1763907050186,-500.0,0.00038356,8]
[394703867,1763907050195,-500.0,0.00038356,8]
[394703868,1763907050204,-500.0,0.00038356,8]
[394703869,1763907050214,-500.0,0.00038356,8]
[394703870,1763907050224,-515.89,0.00038356,8]
[394703871,1763907050234,-500.0,0.00038356,8]
[394703872,1763907050243,-500.0,0.00038356,8]
[394703873,1763907050252,-500.0,0.00038356,8]
[394703874,1763907050262,-599.64,0.00038356,8]
[394703875,1763907050271,-500.0,0.00038356,8]
[394703876,1763907050281,-601.73,0.00038356,8]
[394703877,1763907050290,-500.0,0.00038356,8]
[394703878,1763907050299,-500.0,0.00038356,8]
[394703879,1763907050308,-500.0,0.00038356,8]
[394703880,1763907050317,-500.0,0.00038356,8]
[394703881,1763907050326,-500.0,0.00038356,8]
[394703882,1763907050336,-798.71,0.00038356,8]
[394703883,1763907050346,-500.0,0.00038356,8]
[394703884,1763907050356,-635.0450908,0.00038356,8]
[394703885,1763907050365,-1268.95,0.00038356,8]
[394703886,1763907050376,-500.0,0.00038356,8]
[394703887,1763907050387,-500.0,0.00038356,8]
[394703888,1763907050397,-500.0,0.00038356,8]
[394703889,1763907050407,-524.79874583,0.00038356,8]
[394703890,1763907050418,-500.0,0.00038356,8]
[394703891,1763907050428,-500.0,0.00038356,8]
[394703892,1763907050438,-500.0,0.00038356,8]
[394703893,1763907050447,-612.37142222,0.00038356,8]
[394703894,1763907050456,-500.0,0.00038356,8]
[394703895,1763907050466,-500.0,0.00038356,8]
[394703896,1763907050476,-500.0,0.00038356,8]
[394703897,1763907050484,-501.53441116,0.00038356,8]
[394703898,1763907050493,-500.0,0.00038356,8]
[394703899,1763907050502,-500.0,0.00038356,8]
[394703900,1763907050511,-513.25363455,0.00038356,8]
[394703901,1763907050521,-682.64,0.00038356,8]
[394703902,1763907050531,-574.55,0.00038356,8]
[394703903,1763907050540,-500.0,0.00038356,8]
[394703904,1763907050550,-500.0,0.00038356,8]
[394703905,1763907050559,-500.0,0.00038356,7]
[394703906,1763907050568,-500.0,0.00038356,8]
[394703907,1763907050578,-500.0,0.00038356,8]
[394703908,1763907050589,-500.0,0.00038356,8]
[394703909,1763907050598,-500.0,0.00038356,8]
[394703910,1763907050607,-500.0,0.00038356,8]
[394703911,1763907050617,-500.0,0.00038356,8]
[394703912,1763907050627,-500.0,0.00038356,8]
[394703913,1763907050636,-500.0,0.00038356,8]
[394703914,1763907050646,-500.71887931,0.00038356,8]
[394703915,1763907050655,-1000.0,0.00038356,8]
[394703916,1763907050664,-500.0,0.00038356,8]
[394703917,1763907050673,-500.0,0.00038356,8]
[394703918,1763907050682,-505.4435037,0.00038356,8]
[394703919,1763907050692,-500.0,0.00038356,8]
[394703920,1763907050702,-521.04485338,0.00038356,8]
[394703921,1763907050711,-517.74632799,0.00038356,8]
[394703922,1763907050724,-434.93257562,0.00038356,8]
[394703923,1763907050734,-570.57550417,0.00038356,8]
[394703924,1763907050744,-500.0,0.00038356,8]
[394703925,1763907050754,-502.42754232,0.00038356,8]
[394703926,1763907050764,-507.49763973,0.00038356,8]
[394703927,1763907050774,-500.0,0.00038356,8]
[394703928,1763907050784,-500.0,0.00038356,8]
[394703929,1763907050793,-500.0,0.00038356,8]
[394703930,1763907050803,-500.0,0.00038356,8]
[394703931,1763907050812,-500.0,0.00038356,8]
[394703932,1763907050823,-500.0,0.00038356,8]
[394703933,1763907050832,-500.0,0.00038356,8]
[394703934,1763907050842,-500.0,0.00038356,8]
[394703935,1763907050851,-371.68396507,0.00038356,8]